[Event "46th GRE-chT Premier 2018"]
[Site "Rio Achaia"]
[Date "2018.07.10"]
[Round "1"]
[White "Kesidis, Odyseas"]
[Black "Loutragotis, Dimitrios"]
[Result "1-0"]
[ECO "B19"]
[WhiteElo "2248"]
[BlackElo "2173"]
[Annotator "NA"]
[PlyCount "83"]
[EventDate "2018.07.10"]
[EventType "team-tourn"]
[EventCountry "GRE"]
[SourceTitle "playchess.com"]
[Source "ChessBase"]
[SourceQuality "1"]
[TimeControl "40/5400+30:1800+30"]

1. e4 {[%emt 0:00:00]} c6 {[%emt 0:00:00]} 2. d4 {[%emt 0:00:00]} d5 {[%emt 0:00:00]} 3. Nd2 {[%emt 0:00:00]} dxe4 {[%emt 0:00:00]} 4. Nxe4 {[%emt 0:00:00]} Bf5 {[%emt 0:00:11]} 5. Ng3 {[%emt 0:00:04]} Bg6 {[%emt 0:00:08]} 6. h4 {[%emt 0:00:23]} h6 {[%emt 0:00:07]} 7. Nf3 {[%emt 0:00:06]} Nd7 {[%emt 0:00:08]} 8. h5 {[%emt 0:00:06]} Bh7 {[%emt 0:00:05]} 9. Bd3 {[%emt 0:00:03]} Bxd3 {[%emt 0:00:12]} 10. Qxd3 {[%emt 0:00:03]} e6 {[%emt 0:00:26]} 11. Bd2 {[%emt 0:00:16]} Ngf6 {[%emt 0:00:09]} 12. O-O-O {[%emt 0:00:22]} Bd6 {[%emt 0:00:09]} 13. Ne4 {[%emt 0:01:22]} Nxe4 {[%emt 0:00:08]} 14. Qxe4 {[%emt 0:00:01]} Nf6 {[%emt 0:00:10]} 15. Qe2 {[%emt 0:00:04]} Bc7 {[%emt 0:03:57]} 16. Kb1 {[%emt 0:02:54]} Qd5 {[%emt 0:00:21]} 17. c4 {[%emt 0:10:25]} Qe4+ {[%emt 0:01:02]} 18. Qxe4 {[%emt 0:00:08]} Nxe4 {[%emt 0:00:06]} 19. Be3 {[%emt 0:00:09]} f5 {[%emt 0:09:09]} 20. d5 {[%emt 0:14:31]} cxd5 {[%emt 0:02:36]} 21. cxd5 {[%emt 0:03:02]} e5 {[%emt 0:01:40]} 22. Rhe1 {[%emt 0:13:53]} O-O {[%emt 0:09:13]} 23. Nh4 {[%emt 0:02:34]} Bd6 {[%emt 0:01:32]} 24. Re2 {[%emt 0:13:08]} Rac8 {[%emt 0:50:48]} 25. Bxa7 {[%emt 0:06:39]} Rc4 {[%emt 0:00:34]} 26. Rc1 {[%emt 0:06:40]} Ra4 {[%emt 0:00:25]} 27. Bb6 {[%emt 0:00:49]} Rb4 {[%emt 0:04:46]} 28. Bc7 {[%emt 0:06:12]} Bxc7 {[%emt 0:11:33]} 29. Rxc7 {[%emt 0:00:06]} Nf6 {[%emt 0:00:06]} 30. Nxf5 {[%emt 0:04:14]} Nxd5 {[%emt 0:00:09]} 31. Ne7+ {[%emt 0:00:12]} Nxe7 {[%emt 0:00:08]} 32. Rxe7 {[%emt 0:00:03]} e4 {[%emt 0:01:42]} 33. a3 {[%emt 0:01:57]} Rc4 {[%emt 0:01:54]} 34. Rxb7 {[%emt 0:04:28]} e3 {[%emt 0:01:38]} 35. Rxe3 {[%emt 0:02:01]} Rxf2 {[%emt 0:00:14]} 36. Re8+ {[%emt 0:00:56]} Rf8 {[%emt 0:00:41]} 37. Rxf8+ {[%emt 0:00:32]} Kxf8 {[%emt 0:00:07]} 38. Rb4 {[%emt 0:00:02]} Rc5 {[%emt 0:00:24]} 39. g4 {[%emt 0:00:06]} Ke7 {[%emt 0:01:19]} 40. Ka2 {[%emt 0:00:00]} Kd8 {[%emt 0:00:00]} 41. Kb3 {[%emt 0:01:26]} Rc6 {[%emt 0:05:02]} 42. Rd4+ {[%emt 0:03:07]} 1-0

[Event "46th GRE-chT Premier 2018"]
[Site "Rio Achaia"]
[Date "2018.07.10"]
[Round "1"]
[White "Hadzimanolis, Antonios"]
[Black "Gkonelas, Nikolaos"]
[Result "1-0"]
[ECO "A06"]
[WhiteElo "2246"]
[BlackElo "1917"]
[Annotator "NA"]
[PlyCount "83"]
[EventDate "2018.07.10"]
[EventType "team-tourn"]
[EventCountry "GRE"]
[SourceTitle "playchess.com"]
[Source "ChessBase"]
[SourceQuality "1"]
[TimeControl "40/5400+30:1800+30"]

1. Nf3 {[%emt 0:00:03]} d5 {[%emt 0:00:06]} 2. g3 {[%emt 0:00:38]} Nf6 {[%emt 0:01:50]} 3. Bg2 {[%emt 0:00:08]} e6 {[%emt 0:01:23]} 4. O-O {[%emt 0:00:42]} Bd6 {[%emt 0:00:36]} 5. c4 {[%emt 0:03:18]} c6 {[%emt 0:00:24]} 6. b3 {[%emt 0:01:11]} O-O {[%emt 0:00:57]} 7. Bb2 {[%emt 0:00:06]} Nbd7 {[%emt 0:01:22]} 8. d3 {[%emt 0:02:42]} Qe7 {[%emt 0:04:58]} 9. Qc2 {[%emt 0:02:36]} b6 {[%emt 0:04:19]} 10. e4 {[%emt 0:32:36]} dxe4 {[%emt 0:01:03]} 11. dxe4 {[%emt 0:00:07]} e5 {[%emt 0:01:05]} 12. a3 {[%emt 0:04:55]} a5 {[%emt 0:07:21]} 13. Nc3 {[%emt 0:10:07]} Rd8 {[%emt 0:03:14]} 14. Rfd1 {[%emt 0:00:58]} Ba6 {[%emt 0:18:34]} 15. Rd2 {[%emt 0:02:08]} Ne8 {[%emt 0:06:56]} 16. Rad1 {[%emt 0:01:23]} Ndf6 {[%emt 0:12:09]} 17. Na4 {[%emt 0:08:10]} b5 {[%emt 0:13:12]} 18. cxb5 {[%emt 0:05:32]} cxb5 {[%emt 0:01:30]} 19. Nb6 {[%emt 0:00:07]} Rab8 {[%emt 0:00:31]} 20. Nd5 {[%emt 0:00:35]} Nxd5 {[%emt 0:00:37]} 21. Rxd5 {[%emt 0:01:28]} f6 {[%emt 0:05:15]} 22. Nh4 {[%emt 0:07:35]} g6 {[%emt 0:03:10]} 23. Bh3 {[%emt 0:00:17]} Bc8 {[%emt 0:01:58]} 24. Bf1 {[%emt 0:00:46]} Nc7 {[%emt 0:01:35]} 25. R5d2 {[%emt 0:00:03]} Bg4 {[%emt 0:00:27]} 26. Rc1 {[%emt 0:01:29]} Rdc8 {[%emt 0:05:38]} 27. h3 {[%emt 0:01:04]} Be6 {[%emt 0:00:15]} 28. Qd1 {[%emt 0:02:01]} Rb6 {[%emt 0:02:40]} 29. Rdc2 {[%emt 0:06:19]} Bxb3 30. Rxc7 {[%emt 0:00:05]} Bxd1 {[%emt 0:00:11]} 31. Rxc8+ {[%emt 0:00:11]} Kf7 {[%emt 0:00:17]} 32. Rxd1 {[%emt 0:00:05]} Qb7 {[%emt 0:01:06]} 33. Rh8 {[%emt 0:00:31]} Kg7 {[%emt 0:00:17]} 34. Rd8 {[%emt 0:00:05]} Qc7 {[%emt 0:00:20]} 35. Ra8 {[%emt 0:01:46]} Qc2 {[%emt 0:00:34]} 36. Ra7+ {[%emt 0:00:02]} Kf8 {[%emt 0:00:26]} 37. Rc1 {[%emt 0:00:20]} Rc6 {[%emt 0:01:19]} 38. Rxc2 {[%emt 0:00:30]} Rxc2 {[%emt 0:00:01]} 39. Rxa5 {[%emt 0:03:45]} Rxb2 {[%emt 0:00:09]} 40. Rxb5 {[%emt 0:00:00]} Ra2 {[%emt 0:00:00]} 41. Rb7 {[%emt 0:08:48]} Bc5 {[%emt 0:03:33]} 42. Rf7+ {[%emt 0:00:42]} 1-0

[Event "46th GRE-chT Premier 2018"]
[Site "Rio Achaia"]
[Date "2018.07.10"]
[Round "1"]
[White "Alexakis, Dimitris"]
[Black "Malataras, Gerasimos"]
[Result "1-0"]
[ECO "C51"]
[WhiteElo "2232"]
[BlackElo "1823"]
[Annotator "NA"]
[PlyCount "77"]
[EventDate "2018.07.10"]
[EventType "team-tourn"]
[EventCountry "GRE"]
[SourceTitle "playchess.com"]
[Source "ChessBase"]
[SourceQuality "1"]
[TimeControl "40/5400+30:1800+30"]

1. e4 {[%emt 0:02:09]} e5 {[%emt 0:00:00]} 2. Nf3 {[%emt 0:00:06]} Nc6 {[%emt 0:00:00]} 3. Bc4 {[%emt 0:01:15]} Bc5 {[%emt 0:00:00]} 4. b4 {[%emt 0:06:22]} Bxb4 {[%emt 0:00:38]} 5. c3 {[%emt 0:00:01]} Be7 {[%emt 0:00:47]} 6. d4 Na5 {[%emt 0:00:58]} 7. Be2 {[%emt 0:00:17]} d6 {[%emt 0:11:50]} 8. dxe5 {[%emt 0:05:34]} dxe5 {[%emt 0:00:44]} 9. Qa4+ {[%emt 0:04:17]} c6 {[%emt 0:04:25]} 10. Nxe5 {[%emt 0:10:11]} Nf6 {[%emt 0:06:05]} 11. O-O {[%emt 0:04:01]} b5 {[%emt 0:13:36]} 12. Qc2 {[%emt 0:00:22]} O-O {[%emt 0:01:23]} 13. a4 {[%emt 0:14:19]} a6 {[%emt 0:13:14]} 14. axb5 {[%emt 0:00:47]} cxb5 {[%emt 0:00:54]} 15. Rd1 {[%emt 0:20:30]} Qb6 {[%emt 0:00:41]} 16. Bf4 {[%emt 0:14:56]} Bc5 {[%emt 0:19:16]} 17. Nd3 {[%emt 0:00:29]} Nc4 {[%emt 0:01:15]} 18. Nxc5 {[%emt 0:01:10]} Qxc5 {[%emt 0:00:07]} 19. Nd2 {[%emt 0:06:54]} Ng4 {[%emt 0:10:47]} 20. Rf1 {[%emt 0:03:12]} Nge5 {[%emt 0:01:39]} 21. Nb3 {[%emt 0:00:39]} Qb6 {[%emt 0:00:30]} 22. Nd4 {[%emt 0:00:39]} Bb7 {[%emt 0:00:57]} 23. Kh1 {[%emt 0:00:11]} Rac8 {[%emt 0:00:39]} 24. Rad1 {[%emt 0:01:33]} Rfe8 {[%emt 0:01:37]} 25. f3 {[%emt 0:01:04]} g6 {[%emt 0:03:03]} 26. h4 {[%emt 0:00:26]} Nc6 {[%emt 0:01:35]} 27. Qa2 {[%emt 0:00:26]} Nd8 {[%emt 0:01:15]} 28. Kh2 {[%emt 0:00:48]} Ne6 {[%emt 0:01:10]} 29. Nxe6 {[%emt 0:00:15]} Rxe6 {[%emt 0:00:15]} 30. Rd4 {[%emt 0:00:13]} Ne5 {[%emt 0:01:57]} 31. Rfd1 {[%emt 0:00:26]} Qc6 {[%emt 0:02:42]} 32. Qd2 {[%emt 0:01:04]} Ree8 {[%emt 0:00:54]} 33. Rd6 {[%emt 0:00:51]} Qc5 {[%emt 0:00:49]} 34. Bg5 {[%emt 0:00:45]} Nc4 {[%emt 0:00:29]} 35. Bxc4 {[%emt 0:00:17]} Qxc4 {[%emt 0:00:28]} 36. Bf6 {[%emt 0:00:16]} Re6 {[%emt 0:00:31]} 37. Rd8+ {[%emt 0:00:13]} Re8 {[%emt 0:00:04]} 38. Qh6 {[%emt 0:00:04]} Qc7+ {[%emt 0:00:23]} 39. R1d6 {[%emt 0:00:13]} 1-0

[Event "46th GRE-chT Premier 2018"]
[Site "Rio Achaia"]
[Date "2018.07.10"]
[Round "1"]
[White "Ergazakis, Ioannis"]
[Black "Dimopoulos, Symeon"]
[Result "1-0"]
[ECO "C06"]
[WhiteElo "2228"]
[BlackElo "2020"]
[Annotator "NA"]
[PlyCount "87"]
[EventDate "2018.07.10"]
[EventType "team-tourn"]
[EventCountry "GRE"]
[SourceTitle "playchess.com"]
[Source "ChessBase"]
[SourceQuality "1"]
[TimeControl "40/5400+30:1800+30"]

1. e4 {[%emt 0:00:00]} e6 {[%emt 0:00:00]} 2. d4 {[%emt 0:00:00]} d5 {[%emt 0:00:00]} 3. Nd2 {[%emt 0:00:00]} Nf6 {[%emt 0:00:30]} 4. e5 {[%emt 0:00:00]} Nfd7 {[%emt 0:00:13]} 5. Bd3 {[%emt 0:00:00]} c5 {[%emt 0:00:19]} 6. c3 {[%emt 0:00:12]} Nc6 {[%emt 0:00:37]} 7. Ne2 {[%emt 0:00:08]} cxd4 {[%emt 0:00:53]} 8. cxd4 {[%emt 0:00:05]} f6 {[%emt 0:00:39]} 9. Nf4 {[%emt 0:06:24]} Nxd4 {[%emt 0:03:48]} 10. Qh5+ {[%emt 0:00:08]} Ke7 {[%emt 0:00:26]} 11. exf6+ {[%emt 0:00:18]} Nxf6 {[%emt 0:00:15]} 12. Ng6+ {[%emt 0:00:10]} hxg6 {[%emt 0:00:22]} 13. Qxh8 {[%emt 0:00:05]} Kf7 {[%emt 0:01:03]} 14. O-O {[%emt 0:00:06]} e5 {[%emt 0:01:18]} 15. Nb3 {[%emt 0:00:08]} Nxb3 {[%emt 0:01:42]} 16. axb3 {[%emt 0:00:05]} Be6 {[%emt 0:02:37]} 17. Bg5 {[%emt 0:05:31]} Qb6 {[%emt 0:05:58]} 18. Rac1 {[%emt 0:21:04]} Rd8 {[%emt 0:16:20]} 19. Qh4 {[%emt 0:11:28]} Be7 {[%emt 0:21:21]} 20. Qa4 {[%emt 0:06:00]} e4 {[%emt 0:07:10]} 21. Be2 {[%emt 0:00:28]} Bc5 {[%emt 0:14:12]} 22. Qb5 {[%emt 0:05:11]} Qxb5 {[%emt 0:02:55]} 23. Bxb5 {[%emt 0:00:15]} Bb6 {[%emt 0:00:09]} 24. Bf4 {[%emt 0:01:07]} d4 {[%emt 0:04:56]} 25. Bc7 {[%emt 0:01:08]} Rd5 {[%emt 0:00:23]} 26. Bxb6 {[%emt 0:00:19]} axb6 {[%emt 0:00:20]} 27. Rc7+ {[%emt 0:00:34]} Nd7 {[%emt 0:03:30]} 28. Bc4 {[%emt 0:04:44]} Rd6 {[%emt 0:00:06]} 29. Re1 {[%emt 0:01:06]} Bxc4 {[%emt 0:02:06]} 30. Rxc4 {[%emt 0:01:26]} Nf6 {[%emt 0:00:56]} 31. Rc7+ {[%emt 0:02:18]} Ke6 {[%emt 0:00:09]} 32. Rxg7 {[%emt 0:00:11]} Kd5 {[%emt 0:00:10]} 33. Rxg6 {[%emt 0:01:11]} d3 {[%emt 0:00:17]} 34. g4 {[%emt 0:00:28]} Rc6 {[%emt 0:02:11]} 35. Rd1 {[%emt 0:00:49]} Ke5 {[%emt 0:04:04]} 36. g5 {[%emt 0:04:32]} Nh5 {[%emt 0:01:35]} 37. Rxc6 {[%emt 0:02:13]} bxc6 {[%emt 0:00:05]} 38. f3 {[%emt 0:00:09]} Kd4 {[%emt 0:01:47]} 39. fxe4 {[%emt 0:00:10]} Kxe4 {[%emt 0:00:08]} 40. Kf2 {[%emt 0:00:00]} Nf4 {[%emt 0:00:00]} 41. Re1+ {[%emt 0:01:09]} Kf5 {[%emt 0:04:04]} 42. Ke3 {[%emt 0:01:09]} Nd5+ {[%emt 0:13:57]} 43. Kxd3 {[%emt 0:00:08]} Kxg5 {[%emt 0:00:04]} 44. Re5+ {[%emt 0:00:05]} 1-0

[Event "46th GRE-chT Premier 2018"]
[Site "Rio Achaia"]
[Date "2018.07.10"]
[Round "1"]
[White "Papadopoulos, Nikolaos"]
[Black "Kourousis, Epaminondas"]
[Result "1/2-1/2"]
[ECO "B01"]
[WhiteElo "2228"]
[BlackElo "2399"]
[Annotator "NA"]
[PlyCount "64"]
[EventDate "2018.07.10"]
[EventType "team-tourn"]
[EventCountry "GRE"]
[SourceTitle "playchess.com"]
[Source "ChessBase"]
[SourceQuality "1"]
[TimeControl "40/5400+30:1800+30"]

1. e4 {[%emt 0:00:06]} d5 {[%emt 0:00:00]} 2. exd5 {[%emt 0:00:11]} Qxd5 {[%emt 0:00:00]} 3. Nc3 {[%emt 0:02:12]} Qa5 {[%emt 0:00:00]} 4. Nf3 {[%emt 0:01:31]} Nf6 {[%emt 0:00:18]} 5. g3 {[%emt 0:01:03]} Bg4 {[%emt 0:03:23]} 6. h3 {[%emt 0:00:45]} Bh5 {[%emt 0:01:31]} 7. Bg2 {[%emt 0:02:04]} e6 {[%emt 0:06:43]} 8. g4 {[%emt 0:14:03]} Bg6 {[%emt 0:00:10]} 9. Nh4 {[%emt 0:03:52]} c6 {[%emt 0:02:19]} 10. O-O {[%emt 0:04:30]} Be7 {[%emt 0:03:58]} 11. d4 {[%emt 0:01:21]} Nbd7 {[%emt 0:08:55]} 12. Nxg6 {[%emt 0:09:29]} hxg6 {[%emt 0:00:24]} 13. Qf3 {[%emt 0:00:33]} Nh7 {[%emt 0:07:22]} 14. Rd1 {[%emt 0:13:18]} O-O {[%emt 0:08:21]} 15. Bf4 {[%emt 0:02:18]} Rfd8 {[%emt 0:03:05]} 16. a3 {[%emt 0:04:53]} a6 {[%emt 0:15:38]} 17. Qe2 {[%emt 0:03:32]} Ndf6 {[%emt 0:06:09]} 18. Be3 {[%emt 0:19:52]} Qc7 {[%emt 0:01:38]} 19. Qf3 {[%emt 0:09:08]} Nd5 {[%emt 0:05:12]} 20. Ne2 {[%emt 0:00:03]} Bg5 {[%emt 0:02:15]} 21. c4 {[%emt 0:01:13]} Nxe3 {[%emt 0:00:23]} 22. fxe3 {[%emt 0:00:03]} a5 {[%emt 0:00:40]} 23. Nc3 {[%emt 0:01:24]} Nf6 {[%emt 0:00:51]} 24. Qf2 {[%emt 0:01:32]} Qb6 {[%emt 0:07:45]} 25. Re1 {[%emt 0:01:33]} Nd7 {[%emt 0:01:28]} 26. Rf1 {[%emt 0:00:09]} Rf8 {[%emt 0:00:50]} 27. Ne4 {[%emt 0:00:23]} Be7 {[%emt 0:00:11]} 28. Qc2 {[%emt 0:00:29]} Rad8 {[%emt 0:01:11]} 29. Rad1 {[%emt 0:00:02]} Nf6 {[%emt 0:00:45]} 30. Nc3 {[%emt 0:00:38]} e5 {[%emt 0:01:06]} 31. c5 {[%emt 0:01:23]} Qc7 {[%emt 0:00:48]} 32. Qf2 {[%emt 0:00:27]} Rde8 {[%emt 0:07:46]} 1/2-1/2

[Event "46th GRE-chT Premier 2018"]
[Site "Rio Achaia"]
[Date "2018.07.10"]
[Round "1"]
[White "Tsakiris, Haralambos"]
[Black "Papadopoulos, Panayotis"]
[Result "1/2-1/2"]
[ECO "B31"]
[WhiteElo "2222"]
[BlackElo "2189"]
[Annotator "NA"]
[PlyCount "81"]
[EventDate "2018.07.10"]
[EventType "team-tourn"]
[EventCountry "GRE"]
[SourceTitle "playchess.com"]
[Source "ChessBase"]
[SourceQuality "1"]
[TimeControl "40/5400+30:1800+30"]

1. e4 {[%emt 0:00:00]} c5 {[%emt 0:00:01]} 2. Nf3 {[%emt 0:00:00]} Nc6 {[%emt 0:00:04]} 3. Bb5 {[%emt 0:00:00]} g6 {[%emt 0:00:18]} 4. Bxc6 {[%emt 0:00:00]} dxc6 {[%emt 0:00:08]} 5. d3 {[%emt 0:00:34]} Bg7 {[%emt 0:00:12]} 6. h3 {[%emt 0:00:06]} e5 {[%emt 0:00:03]} 7. Be3 {[%emt 0:00:16]} Qe7 {[%emt 0:00:08]} 8. Nc3 {[%emt 0:00:12]} Nf6 {[%emt 0:00:06]} 9. Qd2 {[%emt 0:00:03]} Nd7 {[%emt 0:00:06]} 10. Bh6 {[%emt 0:00:10]} f6 {[%emt 0:00:06]} 11. Bxg7 {[%emt 0:00:25]} Qxg7 {[%emt 0:00:06]} 12. Nh2 {[%emt 0:00:14]} Nf8 {[%emt 0:06:46]} 13. f4 {[%emt 0:01:12]} Ne6 {[%emt 0:00:45]} 14. fxe5 {[%emt 0:02:37]} fxe5 {[%emt 0:00:07]} 15. Rf1 {[%emt 0:18:15]} Nf4 {[%emt 0:05:45]} 16. O-O-O {[%emt 0:11:17]} O-O {[%emt 0:06:30]} 17. h4 {[%emt 0:06:53]} Be6 {[%emt 0:03:38]} 18. g3 {[%emt 0:12:33]} Nh5 {[%emt 0:00:42]} 19. Qe3 {[%emt 0:01:49]} c4 {[%emt 0:11:37]} 20. Rxf8+ {[%emt 0:02:18]} Rxf8 {[%emt 0:10:20]} 21. dxc4 {[%emt 0:00:46]} Bxc4 {[%emt 0:00:40]} 22. g4 {[%emt 0:12:28]} Nf4 {[%emt 0:00:08]} 23. Qxa7 {[%emt 0:00:53]} Ng2 {[%emt 0:06:34]} 24. g5 {[%emt 0:05:57]} h5 {[%emt 0:11:27]} 25. Qg1 {[%emt 0:02:53]} Nxh4 {[%emt 0:01:10]} 26. Qg3 {[%emt 0:00:27]} Rf4 {[%emt 0:00:17]} 27. b3 {[%emt 0:06:01]} Be6 {[%emt 0:01:35]} 28. Rd8+ {[%emt 0:06:24]} Kh7 {[%emt 0:00:09]} 29. Kb2 {[%emt 0:00:59]} Qe7 {[%emt 0:03:00]} 30. Rb8 {[%emt 0:03:25]} Qc7 {[%emt 0:02:33]} 31. Ra8 {[%emt 0:00:36]} Qd6 {[%emt 0:01:55]} 32. Ra7 {[%emt 0:02:47]} Bc8 {[%emt 0:14:47]} 33. Ra8 {[%emt 0:00:24]} Bd7 {[%emt 0:01:27]} 34. Ra7 {[%emt 0:00:05]} Bc8 {[%emt 0:06:44]} 35. Ra8 {[%emt 0:00:05]} Be6 {[%emt 0:00:17]} 36. Ra7 {[%emt 0:00:06]} Qd4 {[%emt 0:00:04]} 37. Rxb7+ {[%emt 0:00:34]} Kg8 {[%emt 0:00:06]} 38. Ka3 {[%emt 0:04:43]} Bc8 {[%emt 0:02:51]} 39. Rb4 {[%emt 0:00:24]} Qc5 {[%emt 0:03:52]} 40. Qd3 {[%emt 0:00:00]} Rf8 {[%emt 0:00:00]} 41. Qc4+ 1/2-1/2

[Event "46th GRE-chT Premier 2018"]
[Site "Rio Achaia"]
[Date "2018.07.10"]
[Round "1"]
[White "Roinos, Ilias"]
[Black "Galopoulos, Nikolaos"]
[Result "0-1"]
[ECO "B87"]
[WhiteElo "2220"]
[BlackElo "2351"]
[Annotator "NA"]
[PlyCount "96"]
[EventDate "2018.07.10"]
[EventType "team-tourn"]
[EventCountry "GRE"]
[SourceTitle "playchess.com"]
[Source "ChessBase"]
[SourceQuality "1"]
[TimeControl "40/5400+30:1800+30"]

1. e4 {[%emt 0:00:00]} c5 {[%emt 0:00:00]} 2. Nf3 {[%emt 0:00:00]} d6 {[%emt 0:00:00]} 3. d4 {[%emt 0:00:00]} cxd4 {[%emt 0:00:00]} 4. Nxd4 {[%emt 0:00:01]} Nf6 {[%emt 0:00:00]} 5. Nc3 {[%emt 0:00:11]} a6 {[%emt 0:00:00]} 6. Bc4 {[%emt 0:00:10]} e6 {[%emt 0:00:00]} 7. Bb3 {[%emt 0:00:07]} b5 {[%emt 0:00:00]} 8. Bg5 {[%emt 0:00:08]} Be7 {[%emt 0:00:01]} 9. Qf3 {[%emt 0:00:09]} Qb6 {[%emt 0:00:21]} 10. O-O-O {[%emt 0:00:28]} Nbd7 {[%emt 0:00:35]} 11. Rhe1 {[%emt 0:05:02]} O-O {[%emt 0:01:43]} 12. Qg3 {[%emt 0:03:49]} Nc5 {[%emt 0:02:02]} 13. f4 {[%emt 0:21:40]} Qb7 {[%emt 0:01:49]} 14. Qh4 {[%emt 0:24:23]} h6 {[%emt 0:30:19]} 15. Bxh6 {[%emt 0:02:28]} Nfxe4 {[%emt 0:00:38]} 16. Bg5 {[%emt 0:08:06]} Nxg5 {[%emt 0:07:02]} 17. fxg5 {[%emt 0:00:13]} b4 {[%emt 0:20:20]} 18. Re3 {[%emt 0:19:05]} Nxb3+ {[%emt 0:03:52]} 19. Nxb3 {[%emt 0:01:34]} bxc3 {[%emt 0:06:29]} 20. Rh3 {[%emt 0:00:06]} Bxg5+ {[%emt 0:05:51]} 21. Qxg5 {[%emt 0:00:03]} cxb2+ {[%emt 0:01:59]} 22. Kb1 {[%emt 0:01:28]} e5 {[%emt 0:00:23]} 23. Rg3 {[%emt 0:03:54]} f6 {[%emt 0:00:47]} 24. Qg6 {[%emt 0:00:21]} Qf7 {[%emt 0:10:00]} 25. Qxf7+ {[%emt 0:00:26]} Kxf7 {[%emt 0:00:03]} 26. Rxd6 {[%emt 0:00:21]} Bf5 {[%emt 0:02:50]} 27. Kxb2 {[%emt 0:02:41]} Rfc8 {[%emt 0:01:46]} 28. c3 {[%emt 0:00:12]} Rd8 {[%emt 0:00:03]} 29. Rxd8 {[%emt 0:00:09]} Rxd8 {[%emt 0:00:01]} 30. c4 {[%emt 0:01:36]} Be6 {[%emt 0:03:45]} 31. c5 {[%emt 0:03:51]} Rc8 {[%emt 0:00:37]} 32. Rc3 {[%emt 0:00:07]} Bd5 {[%emt 0:00:04]} 33. g3 {[%emt 0:00:30]} f5 {[%emt 0:00:49]} 34. Na5 {[%emt 0:02:44]} Ke6 {[%emt 0:00:16]} 35. a3 {[%emt 0:00:44]} g5 {[%emt 0:00:04]} 36. Kc1 {[%emt 0:00:04]} e4 {[%emt 0:01:25]} 37. Kd2 {[%emt 0:00:38]} Rh8 {[%emt 0:00:48]} 38. c6 {[%emt 0:00:13]} Rxh2+ {[%emt 0:00:24]} 39. Ke1 {[%emt 0:00:02]} Rh8 {[%emt 0:00:10]} 40. c7 {[%emt 0:00:00]} Rc8 {[%emt 0:00:00]} 41. Nc6 {[%emt 0:05:33]} Kd6 {[%emt 0:13:29]} 42. Nd4 {[%emt 0:01:11]} f4 {[%emt 0:02:47]} 43. gxf4 {[%emt 0:13:13]} gxf4 {[%emt 0:00:01]} 44. Nf5+ {[%emt 0:00:11]} Kd7 {[%emt 0:01:29]} 45. Rc5 {[%emt 0:00:44]} Bb7 {[%emt 0:01:13]} 46. Nd4 {[%emt 0:10:55]} f3 {[%emt 0:00:16]} 47. a4 {[%emt 0:00:18]} Rxc7 {[%emt 0:01:07]} 48. Nb3 {[%emt 0:00:09]} e3 {[%emt 0:03:28]} 0-1

[Event "46th GRE-chT Premier 2018"]
[Site "Rio Achaia"]
[Date "2018.07.10"]
[Round "1"]
[White "Galunova, Tsveta"]
[Black "Antova, Gabriela"]
[Result "0-1"]
[ECO "D25"]
[WhiteElo "2204"]
[BlackElo "2301"]
[Annotator "NA"]
[PlyCount "44"]
[EventDate "2018.07.10"]
[EventType "team-tourn"]
[EventCountry "GRE"]
[SourceTitle "playchess.com"]
[Source "ChessBase"]
[SourceQuality "1"]
[TimeControl "40/5400+30:1800+30"]

1. d4 {[%emt 0:00:00]} d5 {[%emt 0:00:00]} 2. c4 {[%emt 0:00:00]} dxc4 {[%emt 0:00:00]} 3. Nf3 {[%emt 0:00:00]} Nf6 {[%emt 0:06:31]} 4. e3 {[%emt 0:00:19]} Bg4 {[%emt 0:00:14]} 5. Bxc4 {[%emt 0:00:16]} e6 {[%emt 0:00:09]} 6. h3 {[%emt 0:00:17]} Bh5 {[%emt 0:00:11]} 7. Nc3 {[%emt 0:00:36]} Nc6 {[%emt 0:00:33]} 8. Bb5 {[%emt 0:01:04]} Bd6 {[%emt 0:00:27]} 9. Qa4 {[%emt 0:02:21]} Bxf3 {[%emt 0:04:20]} 10. gxf3 {[%emt 0:00:04]} O-O {[%emt 0:00:31]} 11. Bxc6 {[%emt 0:05:38]} bxc6 {[%emt 0:00:09]} 12. Qxc6 {[%emt 0:03:56]} Rb8 {[%emt 0:04:51]} 13. f4 {[%emt 0:12:06]} Rb6 {[%emt 0:08:53]} 14. Qf3 {[%emt 0:01:08]} c5 {[%emt 0:04:19]} 15. Na4 {[%emt 0:21:27]} Rb5 {[%emt 0:03:14]} 16. dxc5 {[%emt 0:02:51]} Qa5+ {[%emt 0:04:59]} 17. Bd2 {[%emt 0:01:11]} Qxa4 {[%emt 0:00:49]} 18. cxd6 {[%emt 0:00:25]} Rxb2 {[%emt 0:01:03]} 19. Bc3 {[%emt 0:05:09]} Ne4 {[%emt 0:00:54]} 20. Bxb2 {[%emt 0:23:26]} Qb4+ {[%emt 0:01:01]} 21. Kf1 {[%emt 0:07:35]} Nd2+ {[%emt 0:00:55]} 22. Kg2 {[%emt 0:00:16]} Nxf3 {[%emt 0:00:13]} 0-1